bitfinex-derivatives/quotes_SOLF0:USTF0_20240906
["timestamp","ask_amount","ask_price","bid_price","bid_amount"]
[1725599701908,3.8971324,130.15,130.13,0.05787506]
[1725599702708,3.8425,130.14,130.13,0.05787506]
[1725599706617,38.7125,130.14,130.13,0.05787506]
[1725599708010,38.7125,130.14,130.06,1.4286]
[1725599708011,26.914,130.09,130.06,1.4286]
[1725599708219,1.3047,130.17,129.93,73.5442597]
[1725599708220,34.87,130.07,130.01,1.3415]
[1725599708515,34.87,130.07,130.01,13.1415]
[1725599709107,23.11907779,130.05,130.03,0.05080624]
[1725599709706,26.96437779,130.05,130.03,0.05080624]
[1725599710506,3.8455,130.04,130.03,0.05080624]
[1725599710708,3.8455,130.04,129.95,3.77622606]
[1725599710709,34.87,130.04,129.95,3.77622606]
[1725599710910,3.82121776,130.08,129.96,13.1304]
[1725599710911,23.07,130.01,129.96,13.1304]
[1725599711110,26.9166,130.01,129.97,11.8]
[1725599711410,23.07,130.03,129.99,11.8]
[1725599711915,0.05105224,130.02,129.99,15.6468]
[1725599712712,0.05105224,130.02,129.97,2.6785]
[1725599712713,3.8453,130.05,130.01,11.8]
[1725599712916,3.8453,130.05,130.02,11.8]
[1725599713612,3.90263184,130.05,130.02,11.84935434]
[1725599714408,25.7127,130.11,130.03,11.8]
[1725599714613,25.7127,130.11,130.04,11.8]
[1725599714614,23.07,130.09,130.04,11.8]
[1725599714815,7.68717222,130.1,130.06,11.8]
[1725599715518,0.05175182,130.09,130.07,0.05146954]
[1725599718924,0.05175182,130.09,130.07,3.89606954]
[1725599719121,0.05175182,130.09,130.07,33.44606954]
[1725599719622,3.8435,130.11,130.07,33.44606954]
[1725599719817,30.9402,130.16,130.08,1.388]
[1725599719818,3.843,130.13,130.08,1.388]
[1725599720117,3.843,130.13,130.09,29.55]
[1725599720322,3.843,130.13,130.09,30.9952]
[1725599720726,0.05617212,130.12,130.1,0.05196126]
[1725599721418,26.96937212,130.12,130.1,0.05196126]
[1725599722917,3.89937212,130.12,130.1,0.05196126]
[1725599723932,3.8434,130.11,130.1,0.05196126]
[1725599725932,0.05617212,130.12,130.1,0.05196126]
[1725599727731,0.05617212,130.12,130.1,29.60196126]
[1725599728034,0.05617212,130.12,130.1,0.05196126]
[1725599729340,0.05617212,130.12,130.1,3.89566126]
[1725599729834,0.05617212,130.12,130.1,0.05196126]
[1725599730837,0.05617212,130.12,130.11,3.8434]
[1725599731142,0.05617212,130.12,130.1,0.05196126]
[1725599732136,0.05617212,130.12,130.1,3.89556126]
[1725599733836,0.05617212,130.12,130.11,3.8434]
[1725599734228,0.05617212,130.12,130.1,0.05196126]
[1725599735438,3.8434,130.11,130.1,0.05196126]
[1725599740047,3.89937212,130.12,130.1,0.05196126]
[1725599740239,26.96937212,130.12,130.1,0.05196126]
[1725599740444,23.12617212,130.12,130.1,0.05196126]
[1725599740641,0.05617212,130.12,130.1,0.05196126]
[1725599741155,23.12617212,130.12,130.1,0.05196126]
[1725599741644,3.8434,130.11,130.1,0.05196126]
[1725599742058,26.9134,130.11,130.1,0.05196126]
[1725599743163,3.8434,130.11,130.1,0.05196126]
[1725599744864,3.89937212,130.12,130.1,0.05196126]
[1725599745361,0.05617212,130.12,130.1,0.05196126]
[1725599746659,0.05617212,130.12,130.1,3.89566126]
[1725599746968,3.8434,130.11,130.1,0.05196126]
[1725599747358,0.05617212,130.12,130.1,0.05196126]
[1725599747658,26.96947212,130.12,130.1,0.05196126]
[1725599747957,3.89947212,130.12,130.1,0.05196126]
[1725599748456,0.05617212,130.12,130.1,0.05196126]
[1725599749662,26.96937212,130.12,130.1,0.05196126]
[1725599750166,23.12617212,130.12,130.1,0.05196126]
[1725599750869,0.05617212,130.12,130.1,0.05196126]
[1725599751370,3.8434,130.11,130.1,0.05196126]
[1725599751563,0.05617212,130.12,130.1,0.05196126]
[1725599752655,3.89937212,130.12,130.1,0.05196126]
[1725599754369,3.8434,130.11,130.1,0.05196126]
[1725599758075,38.7234,130.11,130.1,0.05196126]
[1725599760567,3.8448,130.07,130.03,19.7643]
[1725599760768,11.81,130.09,129.93,7.6971]
[1725599760969,3.8446,130.08,130.04,3.8455]
[1725599761169,34.88,130.09,130.03,11.81]
[1725599761372,34.88,130.09,130.02,11.81]
[1725599761576,0.0486514,130.06,130.04,0.05181279]
[1725599762781,26.9635514,130.06,130.04,0.05181279]
[1725599765171,3.8452,130.05,130.04,0.05181279]
[1725599765571,26.9152,130.05,130.04,0.05181279]
[1725599766178,3.8467,130.0,129.96,4.1481]
[1725599767169,3.903305,129.99,129.97,0.04979212]
[1725599767580,0.056305,129.99,129.97,0.04979212]
[1725599769579,0.056305,129.99,129.97,3.89739212]
[1725599770575,0.056305,129.99,129.97,0.04979212]
[1725599771675,0.056305,129.99,129.97,29.58979212]
[1725599772282,0.056305,129.99,129.98,3.8473]
[1725599773975,0.056305,129.99,129.97,0.04979212]
[1725599776075,23.126305,129.99,129.97,0.04979212]
[1725599776481,3.8473,129.98,129.97,0.04979212]
[1725599777280,26.9173,129.98,129.97,0.04979212]
[1725599780778,3.8473,129.98,129.97,0.04979212]
[1725599781387,26.9173,129.98,129.97,0.04979212]
[1725599782390,3.8473,129.98,129.97,0.04979212]
[1725599783481,0.056305,129.99,129.97,0.04979212]
[1725599784086,0.056305,129.99,129.97,11.86979212]
[1725599784588,23.07,130.05,129.97,11.86979212]
[1725599784784,117.80969959,130.06,130.01,11.82]
[1725599785787,3.89882702,130.05,130.02,0.05729855]
[1725599787892,3.8456,130.04,130.02,0.05729855]
[1725599789493,3.8458,130.03,130.02,0.05729855]
[1725599789693,23.12352702,130.05,130.02,0.05729855]
[1725599790295,3.8456,130.04,130.02,0.05729855]
[1725599794990,26.9158,130.03,130.02,0.05729855]
[1725599796800,3.8458,130.03,130.02,0.05729855]
[1725599801701,3.8457,130.04,130.02,0.05729855]
[1725599802803,3.89882702,130.05,130.02,0.05729855]
[1725599804491,0.05352702,130.05,130.02,3.90329855]
[1725599805491,0.05352702,130.05,130.02,0.05729855]
[1725599806706,3.89892702,130.05,130.02,3.90339855]
[1725599809698,3.8455,130.04,130.02,0.05729855]
[1725599819415,3.89882702,130.05,130.02,7.76254279]
[1725599825823,11.81,130.13,130.04,11.81]
[1725599826128,11.81,130.13,130.06,3.8448]
[1725599826717,3.8439,130.1,130.08,0.04943779]
[1725599827018,23.07,130.1,130.08,0.04943779]
[1725599827616,3.844,130.09,130.08,0.04943779]
[1725599829442,3.8438,130.1,130.08,0.04943779]
[1725599829935,0.05883282,130.11,130.1,3.8437]
[1725599830339,0.05883282,130.11,130.09,11.81]
[1725599830839,0.05883282,130.11,130.1,3.8437]
[1725599832742,0.05883282,130.11,130.1,15.6537]
[1725599838146,0.05883282,130.11,130.1,3.8437]
[1725599841538,0.05883282,130.11,130.08,0.04943779]
[1725599841940,11.81,130.1,130.08,0.04943779]
[1725599842140,3.844,130.09,130.08,0.04943779]
[1725599842343,38.724,130.09,130.08,0.04943779]
[1725599842848,3.8449,130.07,130.03,3.8456]
[1725599843242,3.8449,130.07,130.04,3.8455]
[1725599843644,3.89533794,130.07,130.04,3.89491173]
[1725599843848,3.89533794,130.07,130.04,15.70491173]
[1725599845346,0.05043794,130.07,130.04,15.70491173]
[1725599845549,0.05043794,130.07,130.05,15.6551]
[1725599848446,0.05043794,130.07,130.06,3.8449]
[1725599859269,0.05043794,130.07,130.04,0.04941173]
[1725599859557,0.05043794,130.07,130.05,3.8451]
[1725599860567,0.05043794,130.07,130.05,15.6551]
[1725599860965,0.05043794,130.07,130.05,3.8451]
[1725599861166,0.05043794,130.07,130.05,15.6551]
[1725599862167,0.05043794,130.07,130.06,3.8449]
[1725599865062,0.05043794,130.07,130.06,15.6549]
[1725599867669,0.05043794,130.07,130.06,3.8449]
[1725599869863,0.05043794,130.07,130.06,15.6549]
[1725599872766,0.05043794,130.07,130.06,3.8449]
[1725599872968,0.05043794,130.07,130.06,11.81]
[1725599874478,0.05043794,130.07,130.06,15.6549]
[1725599876975,3.8435,130.11,130.08,3.8442]
[1725599877174,3.8435,130.11,130.09,11.81]
[1725599877975,3.90228719,130.11,130.09,11.86594362]
[1725599878567,0.05878719,130.11,130.09,15.70994362]
[1725599879572,0.05878719,130.11,130.1,11.81]
[1725599881274,1.3259,130.17,130.13,11.81]
[1725599881477,1.3259,130.17,130.15,11.81]
[1725599881978,3.8418,130.17,130.15,11.81]
[1725599882274,0.05781692,130.17,130.15,11.86564471]
[1725599882467,0.05781692,130.17,130.16,11.81]
[1725599885770,3.842,130.16,130.15,0.05564471]
[1725599887073,3.89971692,130.17,130.15,0.05564471]
[1725599888880,3.89971692,130.17,130.15,11.86564471]
[1725599893783,3.89971692,130.17,130.16,11.81]
[1725599893784,0.05781692,130.17,130.16,11.81]
[1725599895375,3.89951692,130.17,130.15,0.05564471]
[1725599895580,3.89951692,130.17,130.15,11.86564471]
[1725599898180,0.05781692,130.17,130.15,11.86564471]
[1725599898489,0.05781692,130.17,130.16,11.81]
[1725599901191,0.05781692,130.17,130.15,0.05564471]
[1725599901389,0.05781692,130.17,130.16,11.81]
[1725599903896,0.05781692,130.17,130.16,15.652]
[1725599905996,5.12580265,130.22,130.17,3.8415]
[1725599906196,5.12580265,130.22,130.18,11.81]
[1725599906497,3.77660265,130.22,130.18,11.81]
[1725599907188,0.05802536,130.21,130.19,0.04949036]
[1725599907495,3.8408,130.2,130.19,0.04949036]
[1725599909180,3.89852536,130.21,130.19,11.85949036]
[1725599910384,3.8408,130.2,130.19,0.04949036]
[1725599913598,3.89862536,130.21,130.19,0.04949036]
[1725599915801,3.89862536,130.21,130.19,11.85949036]
[1725599919705,3.8408,130.2,130.19,0.04949036]
[1725599926505,3.8408,130.2,130.19,11.85949036]
[1725599930423,3.8408,130.2,130.19,0.04949036]
[1725599941125,3.89872536,130.21,130.19,0.04949036]
[1725599944225,0.05802536,130.21,130.2,11.81]
[1725599947427,3.89852536,130.21,130.19,0.04949036]
[1725599952430,3.8408,130.2,130.19,0.04949036]
[1725599958233,3.8419,130.17,130.15,11.81]
[1725599958426,3.80560526,130.17,130.12,4.2236]
[1725599958623,34.88,130.18,130.03,7.6912]
[1725599958830,3.8427,130.14,130.1,11.81]
[1725599959234,0.05482181,130.13,130.11,0.05038377]
[1725599961431,0.05482181,130.13,130.12,11.81]
[1725599965633,3.89762181,130.13,130.12,11.81]
[1725599967335,3.89762181,130.13,130.11,0.05038377]
[1725599970938,3.89762181,130.13,130.12,11.81]
[1725599971944,0.05482181,130.13,130.12,11.81]
[1725599973134,0.05482181,130.13,130.11,3.89368377]
[1725599973135,3.89772181,130.13,130.11,0.05038377]
[1725599973841,3.89772181,130.13,130.11,3.89378377]
[1725599976234,3.89772181,130.13,130.11,0.05038377]
[1725599981343,3.8431,130.12,130.11,0.05038377]
[1725599985857,3.89772181,130.13,130.11,0.05038377]
[1725599992461,0.05482181,130.13,130.11,3.89378377]
[1725599992656,0.05482181,130.13,130.12,11.81]
[1725599993353,0.05482181,130.13,130.11,15.70368377]
[1725600000567,0.05482181,130.13,130.11,3.89368377]
[1725600002467,3.89772181,130.13,130.11,0.05038377]
[1725600007457,3.89772181,130.13,130.11,3.89378377]
[1725600010872,0.05482181,130.13,130.11,3.89378377]
[1725600017665,34.93482181,130.13,130.11,0.05038377]
[1725600017861,34.88,130.12,130.04,2.7246]
[1725600018067,11.81,130.08,130.02,15.69521972]
[1725600018273,3.8448,130.07,130.03,3.8456]
[1725600018774,3.8448,130.07,130.04,3.8455]
[1725600018967,3.89319472,130.07,130.04,3.89636844]
[1725600020670,0.04839472,130.07,130.05,3.8449]
[1725600020873,0.04839472,130.07,130.04,11.86086844]
[1725600021272,0.04839472,130.07,130.06,3.8449]
[1725600022679,0.04839472,130.07,130.05,3.8452]
[1725600022974,0.04839472,130.07,130.06,11.81]
[1725600023782,0.04839472,130.07,130.06,15.6549]
[1725600025475,0.04839472,130.07,130.06,3.8449]
[1725600026367,0.04839472,130.07,130.04,14.67866844]
[1725600026368,0.04839472,130.07,130.05,3.8452]
[1725600027076,3.89299472,130.07,130.04,3.89626844]
[1725600034791,0.04839472,130.07,130.04,0.05086844]
[1725600035686,3.89299472,130.07,130.04,3.89616844]
[1725600038192,34.92839472,130.07,130.04,0.05086844]
[1725600038494,34.88,130.05,130.04,0.05086844]
[1725600038704,38.7252,130.05,130.04,0.05086844]
[1725600042301,3.8459,130.03,129.99,3.8469]
[1725600043297,0.05026171,130.02,130.0,0.05863495]
[1725600044403,3.89636171,130.02,130.0,0.05863495]
[1725600044703,0.05026171,130.02,130.0,0.05863495]
[1725600045101,34.88,130.01,130.0,0.05863495]
[1725600045301,38.79437154,130.01,130.0,0.05863495]
[1725600045497,42.64077154,130.01,130.0,0.05863495]
[1725600046006,38.7264,130.01,130.0,0.05863495]
[1725600046802,15.6564,130.01,130.0,0.05863495]
[1725600047206,23.07,130.01,129.9,1.3356]
[1725600047503,11.81,129.97,129.91,11.81]
[1725600047704,11.81,129.97,129.9,2.6754]
[1725600047908,1.4161,129.98,129.85,11.81]
[1725600048209,0.05580508,129.93,129.9,0.05387063]
[1725600048406,3.90480508,129.93,129.9,0.04938513]
[1725600048611,0.05580508,129.93,129.9,0.04938513]
[1725600048797,0.05580508,129.93,129.9,3.89898513]
[1725600049208,0.05580508,129.93,129.9,0.04938513]
[1725600049397,0.05580508,129.93,129.91,15.75340546]
[1725600049602,0.05580508,129.93,129.92,11.81]
[1725600049909,103.32463113,130.0,129.96,15.6576]
[1725600050212,103.32463113,130.0,129.96,11.81]
[1725600050711,103.32463113,130.0,129.95,15.6581]
[1725600050911,0.05115677,129.99,129.96,0.0575862]
[1725600051912,3.89825677,129.99,129.96,0.0575862]
[1725600052413,3.8474,129.98,129.96,0.0575862]
[1725600052997,15.6574,129.98,129.96,0.0575862]
[1725600053202,15.6574,129.98,129.92,16.9769]
[1725600053203,11.81,129.97,129.84,3.89825786]
[1725600053415,11.81,129.95,129.89,11.81]
[1725600053612,3.849,129.93,129.89,11.81]
[1725600053912,11.81,129.95,129.89,11.81]
[1725600054305,0.04940911,129.93,129.91,0.05162848]
[1725600055203,3.849,129.92,129.91,0.05162848]
[1725600056208,15.659,129.92,129.91,0.05162848]
[1725600056916,38.729,129.92,129.91,0.05162848]
[1725600057311,15.6601,129.89,129.73,4.1909]
[1725600057512,11.81,129.85,129.74,2.95629953]
[1725600057712,98.06277004,129.85,129.79,11.81]
[1725600057912,109.87277004,129.85,129.8,3.8526]
[1725600058115,24.3954,129.88,129.8,11.81]
[1725600058317,0.05258732,129.85,129.83,0.03194025]
[1725600058509,0.05163548,129.85,129.83,0.03194025]
[1725600059114,0.05163548,129.85,129.83,3.88344025]
[1725600059608,0.05163548,129.85,129.83,11.84194025]
[1725600060020,0.05163548,129.85,129.83,0.03194025]
[1725600060317,0.05163548,129.85,129.84,3.8514]
[1725600062020,0.05163548,129.85,129.83,3.88344025]
[1725600062817,0.05163548,129.85,129.84,3.8514]
[1725600063016,1.4384,129.91,129.82,33.7609]
[1725600063413,3.8501,129.89,129.82,33.7609]
[1725600064009,3.8501,129.89,129.84,0.0488773]
[1725600064222,0.05777146,129.87,129.84,0.0488773]
[1725600065023,0.05777146,129.87,129.84,3.9001773]
[1725600065623,0.05777146,129.87,129.85,3.8511]
[1725600066620,3.90837146,129.87,129.84,0.0488773]
[1725600066824,0.05777146,129.87,129.84,0.0488773]
[1725600067325,0.05777146,129.87,129.84,3.9002773]
[1725600067723,0.05777146,129.87,129.84,0.0488773]
[1725600068224,3.8511,129.85,129.84,0.0488773]
[1725600068725,3.852,129.82,129.74,1.4029]
[1725600068920,29.57,129.85,129.76,29.57]
[1725600069119,52.64,129.85,129.76,29.57]
[1725600069527,3.852,129.82,129.76,29.57]
[1725600069721,29.57,129.87,129.81,3.8522]
[1725600070027,3.90587953,129.85,129.83,0.03469843]
[1725600070233,0.05457953,129.85,129.83,0.03469843]
[1725600074032,3.90577953,129.85,129.83,0.03469843]
[1725600074331,0.05457953,129.85,129.83,0.03469843]
[1725600074722,3.90587953,129.85,129.83,0.03469843]
[1725600074930,0.05457953,129.85,129.83,0.03469843]
[1725600075426,0.05457953,129.85,129.83,3.88629843]
[1725600075823,0.05457953,129.85,129.83,0.03469843]
[1725600076422,29.62457953,129.85,129.83,0.03469843]
[1725600077025,3.8514,129.84,129.8,3.8524]
[1725600077424,3.8514,129.84,129.81,3.8523]
[1725600077831,3.8517,129.83,129.78,3.82617809]
[1725600078135,0.05160629,129.82,129.77,1.3937]
[1725600079123,0.05160629,129.82,129.79,3.8528]
[1725600081737,0.05160629,129.82,129.78,3.769163]
[1725600081934,0.05160629,129.82,129.77,30.9637]
[1725600082931,0.05160629,129.82,129.8,3.8524]
[1725600083234,0.05160629,129.82,129.79,29.57]
[1725600083535,0.05160629,129.82,129.81,3.8523]
[1725600083733,0.05160629,129.82,129.81,7.61105734]
[1725600084236,0.05160629,129.82,129.81,7.67194974]
[1725600084537,0.05160629,129.82,129.81,3.8523]
[1725600084941,0.05160629,129.82,129.81,7.65227395]
[1725600085438,0.05160629,129.82,129.81,3.8523]
[1725600086027,0.05160629,129.82,129.81,7.78173971]
[1725600087129,1.3624,129.89,129.81,3.92943971]
[1725600087335,1.361,129.9,129.8,2.867]
[1725600087631,3.8507,129.87,129.84,3.8512]
[1725600087831,30.91,129.92,129.82,29.57]
[1725600088135,0.0521336,129.88,129.86,0.0516063]
[1725600088539,0.0521336,129.88,129.87,3.93585094]
[1725600088738,0.0521336,129.88,129.86,29.6216063]
[1725600089245,0.0521336,129.88,129.86,0.0516063]
[1725600089740,0.0521336,129.88,129.87,3.8505]
[1725600092144,0.0521336,129.88,129.87,7.7198795]
[1725600096341,5.1508944,129.96,129.87,33.4393795]
[1725600096646,3.8488,129.94,129.87,33.46103604]
[1725600096852,34.82876588,129.96,129.87,3.89103604]
[1725600097047,29.57,129.92,129.86,2.7445]
[1725600097344,3.89992531,129.9,129.88,0.05230271]
[1725600097541,0.05012531,129.9,129.88,0.05230271]
[1725600097735,3.8499,129.89,129.88,0.05230271]
[1725600105045,56.4899,129.89,129.88,0.05230271]
[1725600105247,3.8512,129.85,129.81,2.7071]
[1725600106045,3.851,129.86,129.81,2.7071]
[1725600106252,0.0566656,129.85,129.82,0.05143719]
[1725600106455,3.9079656,129.85,129.82,0.05143719]
[1725600108760,3.8515,129.84,129.82,0.05143719]
[1725600108960,0.0566656,129.85,129.82,0.05143719]
[1725600109648,3.8516,129.84,129.82,0.05143719]
[1725600109844,0.0566656,129.85,129.82,0.05143719]
[1725600110048,3.8517,129.83,129.82,0.05143719]
[1725600112455,23.07,129.84,129.76,29.57]
[1725600113151,23.07,129.84,129.77,3.8535]
[1725600113551,0.05645697,129.82,129.77,3.8535]
[1725600113751,3.8525,129.81,129.78,3.8531]
[1725600116948,3.90855697,129.82,129.78,7.71869922]
[1725600117564,3.90855697,129.82,129.79,3.8528]
[1725600118455,3.8524,129.81,129.78,3.8531]
[1725600119358,3.8524,129.81,129.77,3.8534]
[1725600120252,3.8524,129.81,129.78,3.8531]
[1725600120454,3.90865697,129.82,129.78,3.8531]
[1725600120863,0.05645697,129.82,129.78,3.8531]
[1725600121253,52.64,129.81,129.71,3.86477495]
[1725600121460,0.05549128,129.77,129.72,2.8158]
[1725600121864,0.05549128,129.77,129.72,4.1696]
[1725600122162,0.05549128,129.77,129.75,3.8539]
[1725600123264,0.05549128,129.77,129.74,3.83284317]
[1725600123566,0.05549128,129.77,129.75,3.8539]
[1725600125458,0.05549128,129.77,129.72,4.1696]
[1725600125953,0.05549128,129.77,129.73,3.8545]
[1725600126655,0.05549128,129.77,129.73,33.49375984]
[1725600126964,0.05549128,129.77,129.73,29.57]
[1725600127159,0.05549128,129.77,129.76,3.8538]
[1725600129659,228.0,129.89,129.8,3.8526]
[1725600129861,30.9453,129.86,129.76,29.57]
[1725600130158,29.57,129.85,129.78,3.853]
[1725600130556,3.8528,129.8,129.73,3.82207504]
[1725600130761,0.05543998,129.78,129.75,0.05082569]
[1725600132376,0.05543998,129.78,129.76,3.8536]
[1725600133265,0.05543998,129.78,129.77,3.8535]
[1725600134364,3.8521,129.82,129.79,3.8528]
[1725600135470,3.90476354,129.82,129.79,3.90504768]
[1725600135777,0.05266354,129.82,129.8,3.8526]
[1725600137271,3.90476354,129.82,129.79,3.90504768]
[1725600140178,15.74476354,129.82,129.79,3.90504768]
[1725600141784,3.8523,129.81,129.79,0.05224768]
[1725600142083,11.89266354,129.82,129.79,0.05224768]
[1725600143382,15.74486354,129.82,129.79,3.90514768]
[1725600147090,3.8525,129.81,129.79,0.05224768]
[1725600148182,3.8525,129.81,129.79,3.90514768]
[1725600150178,15.74486354,129.82,129.79,3.90514768]
[1725600153276,3.8524,129.81,129.79,0.05224768]
[1725600156384,3.8526,129.8,129.79,0.05224768]
[1725600160994,7.75494039,129.8,129.79,0.05224768]
[1725600161790,3.8526,129.8,129.79,0.05224768]
[1725600165291,3.8532,129.78,129.75,3.854]
[1725600165491,11.84,129.77,129.65,7.7137]
[1725600165796,11.84,129.76,129.69,11.84]
[1725600166096,15.694,129.76,129.72,3.8548]
[1725600166302,11.84,129.76,129.69,11.84]
[1725600166593,3.91205358,129.74,129.71,0.04945017]
[1725600166896,0.05745358,129.74,129.71,0.04945017]
[1725600167096,11.84,129.73,129.71,0.04945017]
[1725600167494,11.89745358,129.74,129.71,0.04945017]
[1725600168003,0.05745358,129.74,129.71,0.04945017]
[1725600168489,3.8547,129.73,129.71,0.04945017]
[1725600169395,15.75195358,129.74,129.71,0.04945017]
[1725600169598,11.89745358,129.74,129.71,0.04945017]
[1725600170291,11.84,129.72,129.71,0.04945017]
[1725600170994,15.695,129.72,129.71,0.04945017]
[1725600171586,28.31553895,129.74,129.71,0.04945017]
[1725600171587,3.8548,129.73,129.71,0.04945017]
[1725600171790,1.48495358,129.74,129.71,0.04945017]
[1725600171791,0.05745358,129.74,129.71,0.04945017]
[1725600172196,3.91205358,129.74,129.71,0.04945017]
[1725600172898,0.05745358,129.74,129.71,0.04945017]
[1725600174292,0.05745358,129.74,129.72,3.855]
[1725600174492,0.05745358,129.74,129.71,0.04945017]
[1725600174894,0.05745358,129.74,129.72,3.8549]
[1725600175301,0.05745358,129.74,129.71,0.04945017]
[1725600176004,3.91195358,129.74,129.71,0.04945017]
[1725600178105,0.05745358,129.74,129.71,3.90455017]
[1725600179408,3.91195358,129.74,129.71,0.04945017]
[1725600180201,3.8547,129.73,129.71,0.04945017]
[1725600180801,0.05745358,129.74,129.71,0.04945017]
[1725600181402,3.8549,129.73,129.71,0.04945017]
[1725600182708,3.91185358,129.74,129.71,0.04945017]
[1725600184416,11.84,129.72,129.71,0.04945017]
[1725600185204,11.84,129.72,129.6,1.435]
[1725600185413,11.84,129.7,129.64,11.84]
[1725600185610,3.8562,129.68,129.65,3.8569]
[1725600185815,11.84,129.7,129.65,3.8569]
[1725600186405,3.90883754,129.69,129.65,3.8569]
[1725600186605,3.90883754,129.69,129.66,3.8568]
[1725600187606,0.05273754,129.69,129.67,3.8564]
[1725600188002,0.05273754,129.69,129.68,11.84]
[1725600189314,0.05273754,129.69,129.68,15.6962]
[1725600189499,0.05273754,129.69,129.68,3.8562]
[1725600190401,0.05273754,129.69,129.67,3.8564]
[1725600191409,0.05273754,129.69,129.68,3.8562]
[1725600192903,0.05273754,129.69,129.67,3.8564]
[1725600193205,0.05273754,129.69,129.65,3.90736385]
[1725600193402,0.05273754,129.69,129.64,11.84]
[1725600193816,0.05273754,129.69,129.66,11.84]
[1725600194410,0.05273754,129.69,129.68,3.8562]
[1725600195720,11.84,129.76,129.72,3.8548]
[1725600195919,13.2732,129.77,129.7,11.84]
[1725600196620,3.8541,129.76,129.72,3.8548]
[1725600197012,0.05489882,129.75,129.73,0.0555759]
[1725600197213,0.05489882,129.75,129.73,3.9101759]
[1725600197415,0.05489882,129.75,129.73,0.0555759]
[1725600197619,3.90909882,129.75,129.73,0.0555759]
[1725600199320,0.05489882,129.75,129.73,0.0555759]
[1725600199821,0.05489882,129.75,129.73,3.9101759]
[1725600201315,11.89489882,129.75,129.73,0.0555759]
[1725600201515,11.84,129.74,129.73,0.0555759]
[1725600201726,15.6944,129.74,129.73,0.0555759]
[1725600203331,3.8552,129.72,129.68,3.856]
[1725600204321,3.91055531,129.71,129.68,3.856]
[1725600205022,0.05525531,129.71,129.67,11.84]
[1725600205232,0.05525531,129.71,129.65,16.1149]
[1725600205421,3.91065531,129.71,129.65,20.03353933]
[1725600206133,3.91065531,129.71,129.68,3.8561]
[1725600206426,0.05525531,129.71,129.69,11.84]
[1725600206725,0.05525531,129.71,129.7,3.8556]
[1725600207133,0.05525531,129.71,129.69,3.8557]
[1725600207536,0.05525531,129.71,129.67,15.6962]
[1725600207731,11.89525531,129.71,129.65,20.03353933]
[1725600208838,3.8558,129.7,129.65,16.1149]
[1725600209229,11.89525531,129.71,129.65,16.1149]
[1725600210336,3.856,129.69,129.66,3.8566]
[1725600211642,11.84,129.69,129.54,11.53546922]
[1725600211837,11.84,129.69,129.63,11.84]
[1725600212042,0.0591394,129.67,129.63,15.75692332]
[1725600212338,0.0591394,129.67,129.64,3.8573]
[1725600212533,0.0591394,129.67,129.63,15.75692332]
[1725600214042,0.0591394,129.67,129.64,11.84]
[1725600214540,0.0591394,129.67,129.65,3.87517532]
[1725600214845,0.0591394,129.67,129.64,11.84]
[1725600215042,0.0591394,129.67,129.65,3.79917636]
[1725600215853,0.0591394,129.67,129.64,11.84]
[1725600216035,0.0591394,129.67,129.65,3.89022079]
[1725600217346,0.0591394,129.67,129.66,3.8568]
[1725600218649,0.0591394,129.67,129.66,15.6968]
[1725600225951,3.8548,129.73,129.66,11.84]
[1725600226152,3.8548,129.73,129.68,11.84]
[1725600227056,0.05757784,129.72,129.7,3.8554]
[1725600227251,0.05757784,129.72,129.7,3.91007959]
[1725600227561,0.05757784,129.72,129.71,3.8553]
[1725600230655,4.1419,129.81,129.75,3.8541]
[1725600230852,2.728,129.81,129.75,11.84]
[1725600231356,2.728,129.81,129.76,3.8536]
[1725600231750,3.90287568,129.8,129.77,0.05279434]
[1725600232048,0.05017568,129.8,129.77,0.05279434]
[1725600232756,3.8529,129.79,129.77,0.05279434]
[1725600233052,0.05017568,129.8,129.77,3.90629434]
[1725600233456,3.90287568,129.8,129.77,3.90629434]
[1725600233851,34.96017568,129.8,129.65,3.80380026]
[1725600234050,34.96017568,129.8,129.71,11.84]
[1725600234051,11.84,129.78,129.71,11.84]
[1725600234251,11.84,129.78,129.72,3.78930889]
[1725600234452,3.8537,129.77,129.73,3.8544]
[1725600234957,0.05215092,129.76,129.74,0.05831645]
[1725600235152,3.90595092,129.76,129.74,0.05831645]